[Event "Titled Tuesday Blitz July 11 Early 2023"]
[White "Galchenko, Matvey"]
[Black "Perez Candelario, Manuel"]
[WhiteFideId "24175480"]
[BlackFideId "2210622"]
[WhiteElo "2869"]
[BlackElo "2664"]
[Result "1-0"]
[Round "4"]
[TimeControl "180+2"]
[Date "2023.07.11"]
[WhiteClock "0:00:22"]
[BlackClock "0:00:09"]
[Board "17"]

1. f4 {[%clk 0:02:50]}  d5 {[%clk 0:02:58]} 2. Nf3 {[%clk 0:02:51]}  Nf6 {[%clk 0:02:57]} 3. g3 {[%clk 0:02:51]}  e6 {[%clk 0:02:57]} 4. Bg2 {[%clk 0:02:52]}  Be7 {[%clk 0:02:57]} 5. O-O {[%clk 0:02:53]}  O-O {[%clk 0:02:57]} 6. d3 {[%clk 0:02:54]}  b6 {[%clk 0:02:56]} 7. Nc3 {[%clk 0:02:52]}  Bb7 {[%clk 0:02:56]} 8. e4 {[%clk 0:02:53]}  dxe4 {[%clk 0:02:45]} 9. Ng5 {[%clk 0:02:52]}  Nbd7 {[%clk 0:02:39]} 10. dxe4 {[%clk 0:02:52]}  Ne5 {[%clk 0:02:00]} 11. Qxd8 {[%clk 0:02:34]}  Raxd8 {[%clk 0:01:59]} 12. fxe5 {[%clk 0:02:32]}  Bc5+ {[%clk 0:01:53]} 13. Kh1 {[%clk 0:02:32]}  Ng4 {[%clk 0:01:53]} 14. h3 {[%clk 0:02:26]}  Nxe5 {[%clk 0:01:46]} 15. Bf4 {[%clk 0:02:24]}  Nc4 {[%clk 0:01:46]} 16. b3 {[%clk 0:01:52]}  Ne3 {[%clk 0:01:42]} 17. Bxe3 {[%clk 0:01:49]}  Bxe3 {[%clk 0:01:42]} 18. Nf3 {[%clk 0:01:49]}  Bc5 {[%clk 0:01:24]} 19. Rad1 {[%clk 0:01:47]}  Bb4 {[%clk 0:01:25]} 20. Nb5 {[%clk 0:01:36]}  Bxe4 {[%clk 0:01:10]} 21. Ne5 {[%clk 0:01:17]}  Rxd1 {[%clk 0:00:50]} 22. Rxd1 {[%clk 0:01:17]}  Bxc2 {[%clk 0:00:50]} 23. Rc1 {[%clk 0:01:17]}  Bg6 {[%clk 0:00:43]} 24. Rxc7 {[%clk 0:01:13]}  a6 {[%clk 0:00:40]} 25. Nc6 {[%clk 0:00:59]}  Be1 {[%clk 0:00:31]} 26. Ne7+ {[%clk 0:00:41]}  Kh8 {[%clk 0:00:30]} 27. Nxg6+ {[%clk 0:00:32]}  hxg6 {[%clk 0:00:31]} 28. Nd6 {[%clk 0:00:31]}  Bxg3 {[%clk 0:00:22]} 29. Rc6 {[%clk 0:00:25]}  b5 {[%clk 0:00:20]} 30. Rxa6 {[%clk 0:00:24]}  f5 {[%clk 0:00:19]} 31. Nxb5 {[%clk 0:00:23]}  Kh7 {[%clk 0:00:18]} 32. Rxe6 {[%clk 0:00:22]}  Rd8 {[%clk 0:00:17]} 33. Bf3 {[%clk 0:00:20]}  Rd2 {[%clk 0:00:17]} 34. Re2 {[%clk 0:00:21]}  Rd1+ {[%clk 0:00:16]} 35. Kg2 {[%clk 0:00:21]}  f4 {[%clk 0:00:15]} 36. a4 {[%clk 0:00:21]}  Ra1 {[%clk 0:00:15]} 37. Nc3 {[%clk 0:00:20]}  Kh6 {[%clk 0:00:16]} 38. Ra2 {[%clk 0:00:20]}  Rc1 {[%clk 0:00:15]} 39. Ne2 {[%clk 0:00:20]}  Rb1 {[%clk 0:00:13]} 40. Nxg3 {[%clk 0:00:21]}  fxg3 {[%clk 0:00:14]} 41. Bd5 {[%clk 0:00:21]}  Kg5 {[%clk 0:00:13]} 42. a5 {[%clk 0:00:22]}  Kf4 {[%clk 0:00:09]} 43. a6 {[%clk 0:00:22]} 1-0


[Site "https://www.chess.com"]

[Event "Titled Tuesday Blitz July 11 Early 2023"]
[White "Bachmann, Axel"]
[Black "Vlassov, Nikolai"]
[WhiteFideId "3700488"]
[BlackFideId "4103360"]
[WhiteElo "2791"]
[BlackElo "2597"]
[Result "1-0"]
[Round "4"]
[TimeControl "180+2"]
[Date "2023.07.11"]
[WhiteClock "0:00:09"]
[BlackClock "0:00:05"]
[Board "21"]

1. e4 {[%clk 0:03:00]}  c5 {[%clk 0:02:54]} 2. Nf3 {[%clk 0:02:59]}  d6 {[%clk 0:02:54]} 3. c3 {[%clk 0:02:59]}  Nf6 {[%clk 0:02:53]} 4. h3 {[%clk 0:02:59]}  g6 {[%clk 0:02:53]} 5. Bd3 {[%clk 0:02:59]}  Bg7 {[%clk 0:02:53]} 6. Bc2 {[%clk 0:02:58]}  e5 {[%clk 0:02:48]} 7. O-O {[%clk 0:02:55]}  O-O {[%clk 0:02:48]} 8. a3 {[%clk 0:02:54]}  Nc6 {[%clk 0:02:47]} 9. b4 {[%clk 0:02:54]}  h6 {[%clk 0:02:36]} 10. d3 {[%clk 0:02:50]}  Be6 {[%clk 0:02:33]} 11. Bb3 {[%clk 0:02:42]}  Qe7 {[%clk 0:02:23]} 12. Bxe6 {[%clk 0:02:37]}  Qxe6 {[%clk 0:02:19]} 13. b5 {[%clk 0:02:37]}  Ne7 {[%clk 0:02:09]} 14. c4 {[%clk 0:02:38]}  Nh5 {[%clk 0:02:05]} 15. Nc3 {[%clk 0:02:22]}  Nf4 {[%clk 0:02:02]} 16. Nd5 {[%clk 0:02:04]}  Nexd5 {[%clk 0:01:57]} 17. cxd5 {[%clk 0:02:05]}  Qd7 {[%clk 0:01:57]} 18. a4 {[%clk 0:01:45]}  f5 {[%clk 0:01:56]} 19. Rb1 {[%clk 0:01:34]}  Rf7 {[%clk 0:01:55]} 20. Re1 {[%clk 0:01:26]}  Raf8 {[%clk 0:01:55]} 21. Bxf4 {[%clk 0:01:26]}  exf4 {[%clk 0:01:54]} 22. Qb3 {[%clk 0:01:13]}  fxe4 {[%clk 0:01:49]} 23. Rxe4 {[%clk 0:01:11]}  Qf5 {[%clk 0:01:26]} 24. Re6 {[%clk 0:01:07]}  Rf6 {[%clk 0:01:26]} 25. Rbe1 {[%clk 0:01:04]}  g5 {[%clk 0:01:22]} 26. Qc4 {[%clk 0:00:56]}  h5 {[%clk 0:01:21]} 27. Qe4 {[%clk 0:00:43]}  g4 {[%clk 0:01:19]} 28. hxg4 {[%clk 0:00:40]}  hxg4 {[%clk 0:01:19]} 29. Qxf5 {[%clk 0:00:35]}  Rxf5 {[%clk 0:01:17]} 30. Nh4 {[%clk 0:00:36]}  Rxd5 {[%clk 0:01:15]} 31. Ng6 {[%clk 0:00:36]}  Rxd3 {[%clk 0:01:04]} 32. Nxf8 {[%clk 0:00:36]}  Bxf8 {[%clk 0:00:59]} 33. Rg6+ {[%clk 0:00:36]}  Kf7 {[%clk 0:00:57]} 34. Rxg4 {[%clk 0:00:36]}  Rd4 {[%clk 0:00:48]} 35. g3 {[%clk 0:00:28]}  Bh6 {[%clk 0:00:44]} 36. Rh4 {[%clk 0:00:25]}  Bg5 {[%clk 0:00:40]} 37. Rh7+ {[%clk 0:00:25]}  Kf6 {[%clk 0:00:40]} 38. gxf4 {[%clk 0:00:19]}  Bxf4 {[%clk 0:00:39]} 39. Rxb7 {[%clk 0:00:19]}  Rxa4 {[%clk 0:00:39]} 40. Re8 {[%clk 0:00:15]}  Be5 {[%clk 0:00:37]} 41. Ra8 {[%clk 0:00:14]}  c4 {[%clk 0:00:34]} 42. Raxa7 {[%clk 0:00:15]}  Rb4 {[%clk 0:00:34]} 43. Ra6 {[%clk 0:00:14]}  c3 {[%clk 0:00:34]} 44. Rc6 {[%clk 0:00:15]}  Rb2 {[%clk 0:00:30]} 45. b6 {[%clk 0:00:13]}  Ke6 {[%clk 0:00:31]} 46. Rbc7 {[%clk 0:00:12]}  Bd4 {[%clk 0:00:29]} 47. b7 {[%clk 0:00:11]}  Bxf2+ {[%clk 0:00:27]} 48. Kf1 {[%clk 0:00:12]}  Bc5 {[%clk 0:00:27]} 49. Ra6 {[%clk 0:00:09]}  c2 {[%clk 0:00:25]} 50. Rxc5 {[%clk 0:00:09]}  Kd7 {[%clk 0:00:13]} 51. Rxc2 {[%clk 0:00:09]}  Rxb7 {[%clk 0:00:12]} 52. Rd2 {[%clk 0:00:09]}  Rb3 {[%clk 0:00:10]} 53. Raxd6+ {[%clk 0:00:08]}  Ke7 {[%clk 0:00:11]} 54. R6d3 {[%clk 0:00:09]}  Rb4 {[%clk 0:00:11]} 55. Re3+ {[%clk 0:00:10]}  Kf6 {[%clk 0:00:11]} 56. Rf2+ {[%clk 0:00:10]}  Kg5 {[%clk 0:00:11]} 57. Rg3+ {[%clk 0:00:11]}  Kh4 {[%clk 0:00:12]} 58. Kg2 {[%clk 0:00:11]}  Rb8 {[%clk 0:00:10]} 59. Rg7 {[%clk 0:00:10]}  Kh5 {[%clk 0:00:09]} 60. Kh1 {[%clk 0:00:08]}  Kh6 {[%clk 0:00:08]} 61. Rg1 {[%clk 0:00:08]}  Rb3 {[%clk 0:00:05]} 62. Rh2+ {[%clk 0:00:09]} 1-0


[Site "https://www.chess.com"]

[Event "Titled Tuesday Blitz July 11 Early 2023"]
[White "Dau Khuong Duy"]
[Black "Goryachkina, Aleksandra"]
[WhiteFideId "12424722"]
[BlackFideId "4147103"]
[WhiteElo "2911"]
[BlackElo "2709"]
[Result "0-1"]
[Round "4"]
[TimeControl "180+2"]
[Date "2023.07.11"]
[WhiteClock "0:00:00"]
[BlackClock "0:00:05"]
[Board "25"]

1. e4 {[%clk 0:03:00]}  c5 {[%clk 0:02:59]} 2. Nf3 {[%clk 0:02:59]}  e6 {[%clk 0:02:59]} 3. g3 {[%clk 0:02:53]}  Nc6 {[%clk 0:02:57]} 4. Bg2 {[%clk 0:02:52]}  Nf6 {[%clk 0:02:57]} 5. Nc3 {[%clk 0:02:50]}  d5 {[%clk 0:02:51]} 6. exd5 {[%clk 0:02:47]}  exd5 {[%clk 0:02:51]} 7. O-O {[%clk 0:02:48]}  d4 {[%clk 0:02:47]} 8. Re1+ {[%clk 0:02:40]}  Be7 {[%clk 0:02:47]} 9. Ne4 {[%clk 0:02:40]}  O-O {[%clk 0:02:42]} 10. d3 {[%clk 0:02:40]}  h6 {[%clk 0:02:38]} 11. a4 {[%clk 0:02:39]}  Be6 {[%clk 0:02:32]} 12. b3 {[%clk 0:02:28]}  Rc8 {[%clk 0:02:30]} 13. Bd2 {[%clk 0:02:26]}  Nd5 {[%clk 0:02:28]} 14. Qe2 {[%clk 0:01:55]}  Qd7 {[%clk 0:02:24]} 15. a5 {[%clk 0:01:47]}  Rfe8 {[%clk 0:02:24]} 16. Bc1 {[%clk 0:01:20]}  Bg4 {[%clk 0:02:20]} 17. Bb2 {[%clk 0:00:54]}  Bf8 {[%clk 0:02:17]} 18. Qf1 {[%clk 0:00:52]}  Ncb4 {[%clk 0:02:00]} 19. Rec1 {[%clk 0:00:50]}  f5 {[%clk 0:01:51]} 20. Ned2 {[%clk 0:00:50]}  Re7 {[%clk 0:01:27]} 21. h3 {[%clk 0:00:49]}  Bh5 {[%clk 0:01:27]} 22. a6 {[%clk 0:00:27]}  b6 {[%clk 0:01:26]} 23. c3 {[%clk 0:00:18]}  dxc3 {[%clk 0:01:20]} 24. Bxc3 {[%clk 0:00:19]}  Nxc3 {[%clk 0:01:19]} 25. Rxc3 {[%clk 0:00:19]}  g5 {[%clk 0:01:15]} 26. d4 {[%clk 0:00:18]}  Bg7 {[%clk 0:01:13]} 27. Rac1 {[%clk 0:00:14]}  Rce8 {[%clk 0:01:10]} 28. Rc4 {[%clk 0:00:14]}  g4 {[%clk 0:00:55]} 29. hxg4 {[%clk 0:00:11]}  fxg4 {[%clk 0:00:56]} 30. Nh4 {[%clk 0:00:11]}  Bxd4 {[%clk 0:00:55]} 31. Kh2 {[%clk 0:00:12]}  Re2 {[%clk 0:00:53]} 32. Rd1 {[%clk 0:00:06]}  Rxf2 {[%clk 0:00:51]} 33. Qh1 {[%clk 0:00:06]}  Re3 {[%clk 0:00:39]} 34. Nf1 {[%clk 0:00:03]}  Rxb3 {[%clk 0:00:36]} 35. Rd2 {[%clk 0:00:03]}  Rxd2 {[%clk 0:00:31]} 36. Nxd2 {[%clk 0:00:04]}  Rxg3 {[%clk 0:00:27]} 37. Ne4 {[%clk 0:00:04]}  Re3 {[%clk 0:00:11]} 38. Qf1 {[%clk 0:00:04]}  Qe7 {[%clk 0:00:07]} 39. Nf5 {[%clk 0:00:04]}  Qe5+ {[%clk 0:00:07]} 40. Neg3 {[%clk 0:00:04]}  Bg6 {[%clk 0:00:05]} 41. Nxh6+ {[%clk 0:00:00]}  Kg7 {[%clk 0:00:05]} 0-1


[Site "https://www.chess.com"]

[Event "Titled Tuesday Blitz July 11 Early 2023"]
[White "Liyanage, Ranindu Dilshan"]
[Black "Nguyen, Ngoc Truong Son"]
[WhiteFideId "9915834"]
[BlackFideId "12401110"]
[WhiteElo "2662"]
[BlackElo "2861"]
[Result "0-1"]
[Round "4"]
[TimeControl "180+2"]
[Date "2023.07.11"]
[WhiteClock "0:01:19"]
[BlackClock "0:00:17"]
[Board "27"]

1. e4 {[%clk 0:03:00]}  c5 {[%clk 0:02:59]} 2. c3 {[%clk 0:03:01]}  d5 {[%clk 0:02:57]} 3. exd5 {[%clk 0:03:00]}  Qxd5 {[%clk 0:02:58]} 4. d4 {[%clk 0:03:00]}  Nf6 {[%clk 0:02:57]} 5. Nf3 {[%clk 0:02:59]}  Nc6 {[%clk 0:02:54]} 6. Bb5 {[%clk 0:02:56]}  Bd7 {[%clk 0:02:43]} 7. O-O {[%clk 0:02:36]}  cxd4 {[%clk 0:02:42]} 8. cxd4 {[%clk 0:02:37]}  Qxb5 {[%clk 0:02:40]} 9. Nc3 {[%clk 0:02:28]}  Qh5 {[%clk 0:02:35]} 10. d5 {[%clk 0:02:29]}  Nb4 {[%clk 0:02:30]} 11. Qb3 {[%clk 0:02:28]}  e6 {[%clk 0:01:09]} 12. a3 {[%clk 0:02:21]}  Nbxd5 {[%clk 0:01:08]} 13. Qxb7 {[%clk 0:02:20]}  Rd8 {[%clk 0:01:05]} 14. Nb5 {[%clk 0:02:14]}  Be7 {[%clk 0:01:02]} 15. Nxa7 {[%clk 0:01:52]}  O-O {[%clk 0:01:02]} 16. Nc6 {[%clk 0:01:53]}  Bxc6 {[%clk 0:01:00]} 17. Qxc6 {[%clk 0:01:54]}  Rb8 {[%clk 0:00:52]} 18. b4 {[%clk 0:01:51]}  Rfc8 {[%clk 0:00:50]} 19. Qa6 {[%clk 0:01:51]}  Ra8 {[%clk 0:00:46]} 20. Qb7 {[%clk 0:01:36]}  Rcb8 {[%clk 0:00:44]} 21. Qc6 {[%clk 0:01:33]}  Nxb4 {[%clk 0:00:35]} 22. Qc4 {[%clk 0:01:32]}  Nbd5 {[%clk 0:00:31]} 23. Nd4 {[%clk 0:01:30]}  Bd6 {[%clk 0:00:25]} 24. h3 {[%clk 0:01:27]}  Qe5 {[%clk 0:00:22]} 25. g3 {[%clk 0:01:27]}  Rc8 {[%clk 0:00:22]} 26. Qd3 {[%clk 0:01:23]}  Rc3 {[%clk 0:00:19]} 27. Qd2 {[%clk 0:01:24]}  Ne4 {[%clk 0:00:18]} 28. Qd1 {[%clk 0:01:19]}  Rxg3+ {[%clk 0:00:17]} 0-1


[Site "https://www.chess.com"]

[Event "Titled Tuesday Blitz July 11 Early 2023"]
[White "Skliarov, Viktor"]
[Black "Molina, Roberto Junio Brito"]
[WhiteFideId "14106736"]
[BlackFideId "2109450"]
[WhiteElo "2619"]
[BlackElo "2841"]
[Result "0-1"]
[Round "4"]
[TimeControl "180+2"]
[Date "2023.07.11"]
[WhiteClock "0:01:03"]
[BlackClock "0:00:46"]
[Board "29"]

1. e4 {[%clk 0:03:00]}  c6 {[%clk 0:02:58]} 2. d4 {[%clk 0:03:00]}  d5 {[%clk 0:02:59]} 3. e5 {[%clk 0:03:01]}  Bf5 {[%clk 0:02:58]} 4. Nf3 {[%clk 0:03:02]}  e6 {[%clk 0:02:55]} 5. Be2 {[%clk 0:03:02]}  Nd7 {[%clk 0:02:53]} 6. O-O {[%clk 0:03:03]}  Bg6 {[%clk 0:02:52]} 7. a4 {[%clk 0:03:02]}  Ne7 {[%clk 0:02:50]} 8. a5 {[%clk 0:03:03]}  Nf5 {[%clk 0:02:49]} 9. a6 {[%clk 0:03:02]}  b5 {[%clk 0:02:49]} 10. Bf4 {[%clk 0:02:57]}  Be7 {[%clk 0:02:48]} 11. g4 {[%clk 0:02:53]}  Nh6 {[%clk 0:02:43]} 12. h3 {[%clk 0:02:48]}  O-O {[%clk 0:02:39]} 13. Qd2 {[%clk 0:02:38]}  Kh8 {[%clk 0:02:37]} 14. Bxh6 {[%clk 0:02:34]}  gxh6 {[%clk 0:02:37]} 15. Qxh6 {[%clk 0:02:35]}  f5 {[%clk 0:02:01]} 16. exf6 {[%clk 0:02:21]}  Bxf6 {[%clk 0:01:56]} 17. c3 {[%clk 0:02:21]}  e5 {[%clk 0:01:53]} 18. dxe5 {[%clk 0:01:58]}  Nxe5 {[%clk 0:01:54]} 19. Nxe5 {[%clk 0:01:59]}  Bxe5 {[%clk 0:01:53]} 20. f4 {[%clk 0:01:59]}  Bg7 {[%clk 0:01:35]} 21. Qg5 {[%clk 0:01:59]}  Bf6 {[%clk 0:01:35]} 22. Qh6 {[%clk 0:01:58]}  Qb6+ {[%clk 0:01:24]} 23. Rf2 {[%clk 0:01:47]}  Qe3 {[%clk 0:01:16]} 24. g5 {[%clk 0:01:35]}  Be5 {[%clk 0:00:54]} 25. Na3 {[%clk 0:01:14]}  Bxf4 {[%clk 0:00:50]} 26. Rf1 {[%clk 0:01:03]}  Bxg5 {[%clk 0:00:46]} 0-1


[Site "https://www.chess.com"]

[Event "Titled Tuesday Blitz July 11 Early 2023"]
[White "Goldin, Alexander"]
[Black "Pakleza, Zbigniew"]
[WhiteFideId "2019540"]
[BlackFideId "1119290"]
[WhiteElo "2615"]
[BlackElo "2828"]
[Result "1/2-1/2"]
[Round "4"]
[TimeControl "180+2"]
[Date "2023.07.11"]
[WhiteClock "0:00:16"]
[BlackClock "0:01:04"]
[Board "30"]

1. Nf3 {[%clk 0:03:00]}  d5 {[%clk 0:02:59]} 2. g3 {[%clk 0:02:58]}  Nf6 {[%clk 0:02:59]} 3. Bg2 {[%clk 0:02:58]}  Bf5 {[%clk 0:02:59]} 4. c4 {[%clk 0:02:57]}  c6 {[%clk 0:02:59]} 5. Qb3 {[%clk 0:02:57]}  Qb6 {[%clk 0:02:59]} 6. d3 {[%clk 0:02:57]}  e6 {[%clk 0:02:58]} 7. Be3 {[%clk 0:02:57]}  Qxb3 {[%clk 0:02:57]} 8. axb3 {[%clk 0:02:56]}  a6 {[%clk 0:02:58]} 9. Nc3 {[%clk 0:02:54]}  Nbd7 {[%clk 0:02:58]} 10. O-O {[%clk 0:02:53]}  Be7 {[%clk 0:02:58]} 11. h3 {[%clk 0:02:51]}  h6 {[%clk 0:02:58]} 12. cxd5 {[%clk 0:02:26]}  Nxd5 {[%clk 0:02:59]} 13. Nxd5 {[%clk 0:02:12]}  exd5 {[%clk 0:02:59]} 14. Bd4 {[%clk 0:02:04]}  O-O {[%clk 0:02:55]} 15. Ne5 {[%clk 0:01:56]}  Nxe5 {[%clk 0:02:51]} 16. Bxe5 {[%clk 0:01:55]}  Rfe8 {[%clk 0:02:52]} 17. Bd4 {[%clk 0:01:51]}  Bb4 {[%clk 0:02:46]} 18. g4 {[%clk 0:01:18]}  Be6 {[%clk 0:02:46]} 19. Bf3 {[%clk 0:01:18]}  c5 {[%clk 0:02:42]} 20. Bc3 {[%clk 0:01:15]}  a5 {[%clk 0:02:42]} 21. d4 {[%clk 0:01:08]}  b6 {[%clk 0:02:37]} 22. Rfd1 {[%clk 0:01:06]}  Red8 {[%clk 0:02:30]} 23. Bxb4 {[%clk 0:01:04]}  cxb4 {[%clk 0:02:16]} 24. Rdc1 {[%clk 0:01:03]}  Rdc8 {[%clk 0:02:10]} 25. Kf1 {[%clk 0:01:01]}  Kf8 {[%clk 0:02:10]} 26. Ke1 {[%clk 0:01:01]}  Ke7 {[%clk 0:02:11]} 27. Kd2 {[%clk 0:01:02]}  Kd6 {[%clk 0:02:11]} 28. e3 {[%clk 0:00:57]}  g5 {[%clk 0:01:49]} 29. Be2 {[%clk 0:00:57]}  f6 {[%clk 0:01:42]} 30. h4 {[%clk 0:00:36]}  Bd7 {[%clk 0:01:28]} 31. hxg5 {[%clk 0:00:33]}  hxg5 {[%clk 0:01:28]} 32. Rh1 {[%clk 0:00:32]}  Rh8 {[%clk 0:01:24]} 33. f3 {[%clk 0:00:33]}  b5 {[%clk 0:01:17]} 34. Rxa5 {[%clk 0:00:25]}  Rxh1 {[%clk 0:01:09]} 35. Rxa8 {[%clk 0:00:24]}  Rh2 {[%clk 0:01:10]} 36. Ra6+ {[%clk 0:00:22]}  Ke7 {[%clk 0:01:07]} 37. Ke1 {[%clk 0:00:20]}  Rh1+ {[%clk 0:01:05]} 38. Kd2 {[%clk 0:00:18]}  Rh2 {[%clk 0:01:06]} 39. Ke1 {[%clk 0:00:17]}  Rh1+ {[%clk 0:01:06]} 40. Kd2 {[%clk 0:00:16]}  Rh2 {[%clk 0:01:04]} 1/2-1/2


[Site "https://www.chess.com"]

[Event "Titled Tuesday Blitz July 11 Early 2023"]
[White "Hajiyev, Kanan"]
[Black "Tristan, Leonardo"]
[WhiteFideId "13404148"]
[BlackFideId "113816"]
[WhiteElo "2534"]
[BlackElo "2773"]
[Result "0-1"]
[Round "4"]
[TimeControl "180+2"]
[Date "2023.07.11"]
[WhiteClock "0:00:20"]
[BlackClock "0:01:49"]
[Board "32"]

1. d4 {[%clk 0:02:51]}  d5 {[%clk 0:02:57]} 2. c4 {[%clk 0:02:49]}  e6 {[%clk 0:02:58]} 3. cxd5 {[%clk 0:02:50]}  exd5 {[%clk 0:02:58]} 4. Nc3 {[%clk 0:02:51]}  a6 {[%clk 0:02:58]} 5. Bg5 {[%clk 0:02:49]}  Qxg5 {[%clk 0:02:57]} 6. Nf3 {[%clk 0:02:48]}  Qd8 {[%clk 0:02:56]} 7. e3 {[%clk 0:02:48]}  Nf6 {[%clk 0:02:56]} 8. Bd3 {[%clk 0:02:48]}  Be7 {[%clk 0:02:55]} 9. h3 {[%clk 0:02:48]}  O-O {[%clk 0:02:55]} 10. g4 {[%clk 0:02:48]}  Re8 {[%clk 0:02:53]} 11. g5 {[%clk 0:02:44]}  Ne4 {[%clk 0:02:53]} 12. Qc2 {[%clk 0:02:33]}  Nc6 {[%clk 0:02:47]} 13. Nxd5 {[%clk 0:02:14]}  Bb4+ {[%clk 0:02:34]} 14. Nxb4 {[%clk 0:01:50]}  Nxb4 {[%clk 0:02:34]} 15. Qb1 {[%clk 0:01:46]}  Nxd3+ {[%clk 0:02:32]} 16. Qxd3 {[%clk 0:01:47]}  Nxg5 {[%clk 0:02:32]} 17. Ne5 {[%clk 0:01:20]}  Rxe5 {[%clk 0:02:31]} 18. f4 {[%clk 0:01:14]}  Bf5 {[%clk 0:02:26]} 19. Qe2 {[%clk 0:01:05]}  Be4 {[%clk 0:02:10]} 20. O-O-O {[%clk 0:00:42]}  Bxh1 {[%clk 0:01:54]} 21. dxe5 {[%clk 0:00:37]}  Qe8 {[%clk 0:01:49]} 22. Rxh1 {[%clk 0:00:20]}  Qc6+ {[%clk 0:01:49]} 0-1


[Site "https://www.chess.com"]

[Event "Titled Tuesday Blitz July 11 Early 2023"]
[White "Movahed, Sina"]
[Black "Manukyan, Artyom"]
[WhiteFideId "42520835"]
[BlackFideId "13305786"]
[WhiteElo "3010"]
[BlackElo "2581"]
[Result "1-0"]
[Round "4"]
[TimeControl "180+2"]
[Date "2023.07.11"]
[WhiteClock "0:01:49"]
[BlackClock "0:01:06"]
[Board "34"]

1. e4 {[%clk 0:03:00]}  c5 {[%clk 0:02:58]} 2. Nf3 {[%clk 0:03:01]}  d6 {[%clk 0:02:58]} 3. d4 {[%clk 0:03:01]}  cxd4 {[%clk 0:02:57]} 4. Nxd4 {[%clk 0:03:02]}  Nf6 {[%clk 0:02:57]} 5. Nc3 {[%clk 0:03:03]}  g6 {[%clk 0:02:58]} 6. Be3 {[%clk 0:03:03]}  Bg7 {[%clk 0:02:58]} 7. f3 {[%clk 0:03:03]}  O-O {[%clk 0:02:59]} 8. Qd2 {[%clk 0:03:04]}  Nc6 {[%clk 0:02:59]} 9. O-O-O {[%clk 0:03:05]}  d5 {[%clk 0:03:00]} 10. Nxc6 {[%clk 0:03:05]}  bxc6 {[%clk 0:03:00]} 11. Bc4 {[%clk 0:03:05]}  Be6 {[%clk 0:02:53]} 12. Bb3 {[%clk 0:03:00]}  Qc7 {[%clk 0:02:49]} 13. Bh6 {[%clk 0:02:56]}  d4 {[%clk 0:02:38]} 14. Bxg7 {[%clk 0:02:36]}  dxc3 {[%clk 0:02:33]} 15. Qh6 {[%clk 0:02:35]}  Bxb3 {[%clk 0:02:30]} 16. Bxf8 {[%clk 0:02:31]}  Rxf8 {[%clk 0:02:25]} 17. axb3 {[%clk 0:02:28]}  Qa5 {[%clk 0:02:19]} 18. bxc3 {[%clk 0:02:24]}  Qxc3 {[%clk 0:02:17]} 19. Kb1 {[%clk 0:02:23]}  a5 {[%clk 0:02:12]} 20. Qd2 {[%clk 0:02:21]}  Qc5 {[%clk 0:02:12]} 21. Qd4 {[%clk 0:02:20]}  Qb5 {[%clk 0:02:12]} 22. Qc4 {[%clk 0:02:14]}  Qb6 {[%clk 0:02:08]} 23. Rd2 {[%clk 0:02:13]}  Ra8 {[%clk 0:02:05]} 24. Qa4 {[%clk 0:02:12]}  c5 {[%clk 0:01:57]} 25. Rhd1 {[%clk 0:02:09]}  Rc8 {[%clk 0:01:32]} 26. e5 {[%clk 0:02:05]}  Nh5 {[%clk 0:01:22]} 27. Qd7 {[%clk 0:01:54]}  Rb8 {[%clk 0:01:10]} 28. Qxe7 {[%clk 0:01:50]}  a4 {[%clk 0:01:06]} 29. Rd8+ {[%clk 0:01:49]} 1-0


[Site "https://www.chess.com"]

[Event "Titled Tuesday Blitz July 11 Early 2023"]
[White "Deac, Bogdan-Daniel"]
[Black "Leebit02"]
[WhiteFideId "1226380"]
[WhiteElo "2982"]
[BlackElo "2580"]
[Result "1-0"]
[Round "4"]
[TimeControl "180+2"]
[Date "2023.07.11"]
[WhiteClock "0:00:44"]
[BlackClock "0:00:00"]
[Board "35"]

1. b3 {[%clk 0:03:00]}  Nf6 {[%clk 0:02:55]} 2. Bb2 {[%clk 0:03:00]}  d5 {[%clk 0:02:55]} 3. e3 {[%clk 0:03:00]}  c5 {[%clk 0:02:53]} 4. Nf3 {[%clk 0:02:58]}  g6 {[%clk 0:02:52]} 5. Bxf6 {[%clk 0:02:57]}  exf6 {[%clk 0:02:52]} 6. d4 {[%clk 0:02:57]}  Nc6 {[%clk 0:02:45]} 7. c3 {[%clk 0:02:55]}  Be6 {[%clk 0:02:42]} 8. g3 {[%clk 0:02:54]}  Rc8 {[%clk 0:02:29]} 9. Bg2 {[%clk 0:02:53]}  cxd4 {[%clk 0:02:23]} 10. exd4 {[%clk 0:02:53]}  Bg7 {[%clk 0:02:22]} 11. O-O {[%clk 0:02:52]}  O-O {[%clk 0:02:23]} 12. Re1 {[%clk 0:02:53]}  f5 {[%clk 0:02:10]} 13. Qd2 {[%clk 0:02:42]}  h6 {[%clk 0:02:08]} 14. h4 {[%clk 0:02:37]}  a6 {[%clk 0:01:57]} 15. Na3 {[%clk 0:02:36]}  Qa5 {[%clk 0:01:45]} 16. Nc2 {[%clk 0:02:36]}  Nb8 {[%clk 0:01:45]} 17. Nb4 {[%clk 0:02:32]}  Nd7 {[%clk 0:01:44]} 18. Ne5 {[%clk 0:02:02]}  Nxe5 {[%clk 0:01:11]} 19. dxe5 {[%clk 0:02:02]}  Rfd8 {[%clk 0:01:12]} 20. Rad1 {[%clk 0:02:01]}  Bf8 {[%clk 0:00:59]} 21. Nxd5 {[%clk 0:01:59]}  Kg7 {[%clk 0:00:28]} 22. Re3 {[%clk 0:01:58]}  Bxd5 {[%clk 0:00:17]} 23. Bxd5 {[%clk 0:01:57]}  Rc5 {[%clk 0:00:16]} 24. Rd3 {[%clk 0:01:47]}  Rc7 {[%clk 0:00:15]} 25. Qb2 {[%clk 0:01:30]}  Kh7 {[%clk 0:00:14]} 26. c4 {[%clk 0:01:26]}  Bg7 {[%clk 0:00:13]} 27. Qe2 {[%clk 0:01:16]}  Qc5 {[%clk 0:00:12]} 28. Kg2 {[%clk 0:01:14]}  Qe7 {[%clk 0:00:12]} 29. f4 {[%clk 0:01:14]}  b6 {[%clk 0:00:09]} 30. h5 {[%clk 0:01:14]}  g5 {[%clk 0:00:08]} 31. Kh3 {[%clk 0:01:07]}  Bh8 {[%clk 0:00:06]} 32. Re3 {[%clk 0:00:59]}  f6 {[%clk 0:00:05]} 33. Qd3 {[%clk 0:00:48]}  Qd7 {[%clk 0:00:02]} 34. e6 {[%clk 0:00:45]}  Qg7 {[%clk 0:00:00]} 35. Qxf5+ {[%clk 0:00:44]} 1-0


[Site "https://www.chess.com"]